[Event "ONJK-B 2019"]
[Site "Borne"]
[Date "2019.08.07"]
[Round "4.7"]
[White "Ekker, Laurens"]
[Black "Olree, Alex"]
[Result "1-0"]
[ECO "B08"]
[WhiteElo "1614"]
[BlackElo "1411"]
[Annotator "NA"]
[PlyCount "83"]
[EventDate "2019.08.05"]
[EventType "swiss"]
[EventCountry "NED"]
[SourceTitle "playchess.com"]
[Source "ChessBase"]
[SourceQuality "1"]
[TimeControl "5400+30"]

1. e4 {[%emt 0:00:00]} g6 {[%emt 0:00:00]} 2. d4 {[%emt 0:00:00]} Bg7 {[%emt 0:00:00]} 3. Nf3 {[%emt 0:00:00]} d6 {[%emt 0:00:00]} 4. Nc3 {[%emt 0:00:16]} Nf6 {[%emt 0:00:00]} 5. Be3 {[%emt 0:00:24]} c6 {[%emt 0:03:24]} 6. Bd3 {[%emt 0:01:06]} Nbd7 {[%emt 0:01:22]} 7. O-O {[%emt 0:02:01]} O-O {[%emt 0:02:52]} 8. a4 {[%emt 0:00:29]} e5 {[%emt 0:02:48]} 9. dxe5 {[%emt 0:02:39]} dxe5 {[%emt 0:02:41]} 10. h3 {[%emt 0:02:54]} Qe7 {[%emt 0:01:31]} 11. Nd2 {[%emt 0:04:08]} Nc5 {[%emt 0:12:07]} 12. Bc4 {[%emt 0:02:22]} Rd8 {[%emt 0:03:36]} 13. Qe2 {[%emt 0:02:23]} Nh5 {[%emt 0:04:23]} 14. Qf3 {[%emt 0:04:51]} Ne6 {[%emt 0:09:29]} 15. Nb3 {[%emt 0:14:11]} Nd4 {[%emt 0:03:39]} 16. Bxd4 {[%emt 0:09:34]} exd4 {[%emt 0:00:05]} 17. Ne2 {[%emt 0:01:54]} Be6 {[%emt 0:08:21]} 18. Bxe6 {[%emt 0:05:31]} fxe6 {[%emt 0:00:05]} 19. Qd3 {[%emt 0:02:10]} c5 {[%emt 0:02:26]} 20. Nd2 {[%emt 0:04:10]} e5 {[%emt 0:04:18]} 21. Nc4 {[%emt 0:05:25]} Rf8 {[%emt 0:02:23]} 22. f3 {[%emt 0:02:15]} Rae8 {[%emt 0:02:20]} 23. Na5 {[%emt 0:03:50]} b6 {[%emt 0:01:25]} 24. Nc4 {[%emt 0:00:21]} Kh8 {[%emt 0:02:04]} 25. b3 {[%emt 0:00:47]} Qh4 {[%emt 0:00:24]} 26. Qd1 {[%emt 0:02:25]} Rf7 {[%emt 0:05:02]} 27. Nd6 {[%emt 0:00:30]} Ref8 {[%emt 0:00:21]} 28. Nxf7+ {[%emt 0:00:22]} Rxf7 {[%emt 0:00:02]} 29. a5 {[%emt 0:02:19]} b5 {[%emt 0:00:25]} 30. a6 {[%emt 0:02:14]} Bh6 {[%emt 0:00:04]} 31. Qe1 {[%emt 0:01:17]} Be3+ {[%emt 0:00:07]} 32. Kh1 {[%emt 0:00:22]} Qg5 {[%emt 0:01:48]} 33. g4 {[%emt 0:00:58]} Rg7 {[%emt 0:03:23]} 34. h4 {[%emt 0:03:14]} Qh6 {[%emt 0:00:01]} 35. gxh5 {[%emt 0:00:32]} gxh5 {[%emt 0:00:04]} 36. Ng3 {[%emt 0:02:28]} Rg6 {[%emt 0:01:50]} 37. Nf5 {[%emt 0:00:51]} Qf4 {[%emt 0:00:03]} 38. Nxe3 {[%emt 0:00:50]} Rg3 {[%emt 0:00:48]} 39. Qxg3 {[%emt 0:06:16]} Qxg3 {[%emt 0:00:02]} 40. Nf5 {[%emt 0:00:03]} Qg6 {[%emt 0:00:32]} 41. Rg1 {[%emt 0:00:21]} Qc6 {[%emt 0:00:31]} 42. Ne7 {[%emt 0:01:17]} 1-0

[Event "ONJK-B 2019"]
[Site "Borne"]
[Date "2019.08.07"]
[Round "4.8"]
[White "Arnold, Kiri"]
[Black "Berghuis, Rowin"]
[Result "1-0"]
[ECO "C21"]
[WhiteElo "1590"]
[BlackElo "1081"]
[Annotator "NA"]
[PlyCount "83"]
[EventDate "2019.08.05"]
[EventType "swiss"]
[EventCountry "NED"]
[SourceTitle "playchess.com"]
[Source "ChessBase"]
[SourceQuality "1"]
[TimeControl "5400+30"]

1. e4 {[%emt 0:00:00]} e5 {[%emt 0:00:00]} 2. d4 {[%emt 0:00:00]} exd4 {[%emt 0:00:00]} 3. c3 {[%emt 0:00:00]} Nc6 {[%emt 0:00:25]} 4. cxd4 {[%emt 0:00:00]} d5 {[%emt 0:00:25]} 5. e5 {[%emt 0:00:29]} f6 {[%emt 0:00:47]} 6. exf6 {[%emt 0:06:58]} Nxf6 {[%emt 0:00:25]} 7. Be3 {[%emt 0:02:47]} Bd6 {[%emt 0:04:40]} 8. Nf3 {[%emt 0:00:44]} O-O {[%emt 0:00:58]} 9. Nc3 {[%emt 0:01:02]} Re8 {[%emt 0:01:09]} 10. Rc1 {[%emt 0:05:14]} Bf4 {[%emt 0:02:10]} 11. Qd2 {[%emt 0:06:20]} Ng4 {[%emt 0:01:12]} 12. Nd1 {[%emt 0:03:31]} Qe7 {[%emt 0:03:50]} 13. Rc3 {[%emt 0:07:27]} Na5 {[%emt 0:07:49]} 14. b3 {[%emt 0:07:36]} b6 {[%emt 0:06:45]} 15. Be2 {[%emt 0:06:13]} Bd6 {[%emt 0:01:19]} 16. O-O {[%emt 0:01:06]} Bb4 {[%emt 0:01:04]} 17. Rxc7 {[%emt 0:05:39]} Bxd2 {[%emt 0:00:46]} 18. Rxe7 {[%emt 0:00:14]} Rxe7 {[%emt 0:00:18]} 19. Nxd2 {[%emt 0:00:09]} Nf6 {[%emt 0:04:27]} 20. Bd3 {[%emt 0:06:57]} Nc6 {[%emt 0:02:49]} 21. Nc3 {[%emt 0:02:10]} Nb4 {[%emt 0:00:46]} 22. Bb1 {[%emt 0:00:13]} Ng4 {[%emt 0:00:59]} 23. Bg5 {[%emt 0:00:26]} Re8 {[%emt 0:01:50]} 24. a3 {[%emt 0:02:19]} Nc6 {[%emt 0:01:12]} 25. Nxd5 {[%emt 0:02:01]} Re2 {[%emt 0:06:19]} 26. Bd3 {[%emt 0:01:07]} Rxd2 {[%emt 0:03:58]} 27. Bxd2 {[%emt 0:00:02]} Nxd4 {[%emt 0:00:58]} 28. Bc4 {[%emt 0:01:18]} Kh8 {[%emt 0:01:41]} 29. Nc7 {[%emt 0:01:33]} Rb8 {[%emt 0:00:24]} 30. Bf4 {[%emt 0:00:37]} Bf5 {[%emt 0:01:49]} 31. Ne6 {[%emt 0:02:23]} Re8 {[%emt 0:02:24]} 32. Nxd4 {[%emt 0:00:13]} Bg6 {[%emt 0:01:58]} 33. Nf3 {[%emt 0:00:48]} h6 {[%emt 0:01:40]} 34. h3 {[%emt 0:00:47]} Nf6 {[%emt 0:00:14]} 35. Ne5 {[%emt 0:00:30]} Bf5 {[%emt 0:02:16]} 36. Nf7+ {[%emt 0:01:30]} Kh7 {[%emt 0:00:11]} 37. Nd6 {[%emt 0:01:03]} Rd8 {[%emt 0:00:50]} 38. Nxf5 {[%emt 0:00:00]} Ne4 {[%emt 0:01:01]} 39. Re1 {[%emt 0:00:02]} Nc5 {[%emt 0:02:04]} 40. Re7 {[%emt 0:00:59]} Rd7 {[%emt 0:00:56]} 41. Rxd7 {[%emt 0:00:12]} Nxd7 {[%emt 0:00:05]} 42. Bd6 {[%emt 0:00:28]} 1-0

[Event "ONJK-B 2019"]
[Site "Borne"]
[Date "2019.08.07"]
[Round "4.9"]
[White "Tiggelman, Laura"]
[Black "Nopper, Louis"]
[Result "0-1"]
[ECO "B07"]
[WhiteElo "1436"]
[BlackElo "1579"]
[Annotator "NA"]
[PlyCount "69"]
[EventDate "2019.08.05"]
[EventType "swiss"]
[EventCountry "NED"]
[SourceTitle "playchess.com"]
[Source "ChessBase"]
[SourceQuality "1"]
[TimeControl "5400+30"]

1. e4 {[%emt 0:00:00]} d6 {[%emt 0:00:00]} 2. c3 {[%emt 0:01:56]} Nf6 {[%emt 0:00:02]} 3. Nf3 {[%emt 0:03:51]} Nxe4 {[%emt 0:01:22]} 4. Qa4+ {[%emt 0:00:07]} Nc6 {[%emt 0:01:29]} 5. Qxe4 {[%emt 0:00:07]} g6 {[%emt 0:00:08]} 6. d3 {[%emt 0:03:51]} Bg7 {[%emt 0:01:00]} 7. g3 {[%emt 0:00:20]} O-O {[%emt 0:00:31]} 8. Bg2 {[%emt 0:00:09]} Bf5 {[%emt 0:02:58]} 9. Qe2 {[%emt 0:00:26]} e5 {[%emt 0:00:25]} 10. Nbd2 {[%emt 0:01:17]} Re8 {[%emt 0:01:04]} 11. O-O {[%emt 0:04:26]} Qd7 {[%emt 0:08:01]} 12. Re1 {[%emt 0:01:15]} d5 {[%emt 0:03:18]} 13. Nh4 {[%emt 0:09:06]} Bg4 {[%emt 0:06:41]} 14. Bf3 {[%emt 0:08:17]} Be6 {[%emt 0:00:34]} 15. Nf1 {[%emt 0:09:30]} f5 {[%emt 0:10:20]} 16. Rd1 {[%emt 0:07:29]} d4 {[%emt 0:06:54]} 17. c4 {[%emt 0:10:35]} a5 {[%emt 0:02:56]} 18. Bxc6 {[%emt 0:02:13]} Qxc6 {[%emt 0:00:24]} 19. Nf3 {[%emt 0:00:33]} Bd7 {[%emt 0:05:36]} 20. b3 {[%emt 0:09:56]} Qd6 {[%emt 0:03:25]} 21. Bb2 {[%emt 0:02:03]} c5 {[%emt 0:03:03]} 22. Qd2 {[%emt 0:05:16]} Bc6 {[%emt 0:02:59]} 23. Ne1 {[%emt 0:00:20]} Qc7 {[%emt 0:11:31]} 24. a3 {[%emt 0:03:39]} e4 {[%emt 0:04:10]} 25. Nc2 {[%emt 0:03:01]} b6 {[%emt 0:07:37]} 26. b4 {[%emt 0:01:12]} a4 {[%emt 0:00:46]} 27. bxc5 {[%emt 0:00:39]} bxc5 {[%emt 0:00:08]} 28. Rab1 {[%emt 0:02:32]} Bb7 {[%emt 0:00:51]} 29. h4 {[%emt 0:02:22]} Qc6 {[%emt 0:00:19]} 30. Ne1 {[%emt 0:03:00]} e3 {[%emt 0:00:41]} 31. fxe3 {[%emt 0:00:23]} Qh1+ {[%emt 0:00:42]} 32. Kf2 {[%emt 0:00:05]} dxe3+ {[%emt 0:00:12]} 33. Nxe3 {[%emt 0:00:11]} Bh6 {[%emt 0:00:17]} 34. N1g2 {[%emt 0:05:56]} Qh2 {[%emt 0:02:35]} 35. Re1 {[%emt 0:01:00]} 0-1

[Event "ONJK-B 2019"]
[Site "Borne"]
[Date "2019.08.07"]
[Round "4.10"]
[White "Hooijmans, Max"]
[Black "Klein, Lucas"]
[Result "1/2-1/2"]
[ECO "B30"]
[WhiteElo "1559"]
[BlackElo "1481"]
[Annotator "NA"]
[PlyCount "80"]
[EventDate "2019.08.05"]
[EventType "swiss"]
[EventCountry "NED"]
[SourceTitle "playchess.com"]
[Source "ChessBase"]
[SourceQuality "1"]
[TimeControl "5400+30"]

1. e4 {[%emt 0:00:00]} c5 {[%emt 0:00:00]} 2. c4 {[%emt 0:00:00]} Nc6 {[%emt 0:00:29]} 3. Nc3 {[%emt 0:00:00]} d6 {[%emt 0:04:46]} 4. Nf3 {[%emt 0:02:20]} Bg4 {[%emt 0:03:57]} 5. h3 {[%emt 0:01:07]} Bxf3 {[%emt 0:00:31]} 6. Qxf3 {[%emt 0:00:19]} Nd4 {[%emt 0:00:54]} 7. Qd1 {[%emt 0:00:08]} g6 {[%emt 0:01:10]} 8. Nd5 {[%emt 0:01:45]} e6 {[%emt 0:02:28]} 9. Qa4+ {[%emt 0:00:40]} Nc6 {[%emt 0:01:02]} 10. Nc3 {[%emt 0:00:21]} Bg7 {[%emt 0:00:54]} 11. g3 {[%emt 0:01:09]} Nge7 {[%emt 0:02:00]} 12. Bg2 {[%emt 0:00:51]} O-O {[%emt 0:01:34]} 13. O-O {[%emt 0:00:16]} a6 {[%emt 0:08:00]} 14. d3 {[%emt 0:08:03]} Qb6 {[%emt 0:12:01]} 15. Nd1 {[%emt 0:10:32]} Ne5 {[%emt 0:03:01]} 16. Qc2 {[%emt 0:05:37]} N7c6 {[%emt 0:01:35]} 17. f4 {[%emt 0:08:21]} Nd4 {[%emt 0:05:21]} 18. Qd2 {[%emt 0:01:28]} Nec6 {[%emt 0:00:47]} 19. Nc3 {[%emt 0:03:35]} Qc7 {[%emt 0:03:11]} 20. g4 {[%emt 0:03:28]} f5 {[%emt 0:07:36]} 21. exf5 {[%emt 0:01:58]} exf5 {[%emt 0:02:26]} 22. Nd5 {[%emt 0:00:24]} Qd8 {[%emt 0:01:19]} 23. g5 {[%emt 0:00:20]} b5 {[%emt 0:03:36]} 24. Kh1 {[%emt 0:03:39]} Ra7 {[%emt 0:02:14]} 25. Qf2 {[%emt 0:03:56]} bxc4 {[%emt 0:02:00]} 26. dxc4 {[%emt 0:00:19]} Rb7 {[%emt 0:01:03]} 27. Rb1 {[%emt 0:01:24]} Qb8 {[%emt 0:02:03]} 28. b3 {[%emt 0:01:27]} a5 {[%emt 0:01:12]} 29. Bb2 {[%emt 0:01:27]} Rbf7 {[%emt 0:04:40]} 30. Bxd4 {[%emt 0:01:10]} Bxd4 {[%emt 0:03:02]} 31. Qg3 {[%emt 0:01:46]} Ne7 {[%emt 0:02:07]} 32. Nxe7+ {[%emt 0:01:20]} Rxe7 {[%emt 0:00:10]} 33. Bd5+ {[%emt 0:00:24]} Kh8 {[%emt 0:00:20]} 34. Rfe1 {[%emt 0:01:05]} Rfe8 {[%emt 0:00:57]} 35. Rxe7 {[%emt 0:01:08]} Rxe7 {[%emt 0:00:09]} 36. Re1 {[%emt 0:00:20]} Qe8 {[%emt 0:00:27]} 37. Rxe7 {[%emt 0:00:38]} Qxe7 {[%emt 0:00:00]} 38. Kh2 {[%emt 0:01:00]} Qe2+ {[%emt 0:00:06]} 39. Kh1 {[%emt 0:02:19]} Qe3 {[%emt 0:01:53]} 40. Kh2 {[%emt 0:01:40]} Qe2+ {[%emt 0:01:14]} 1/2-1/2

[Event "ONJK-B 2019"]
[Site "Borne"]
[Date "2019.08.07"]
[Round "4.11"]
[White "Neirynck, Arthur"]
[Black "Van Hille, Clara"]
[Result "1-0"]
[ECO "C30"]
[WhiteElo "1514"]
[BlackElo "1391"]
[Annotator "NA"]
[PlyCount "47"]
[EventDate "2019.08.05"]
[EventType "swiss"]
[EventCountry "NED"]
[SourceTitle "playchess.com"]
[Source "ChessBase"]
[SourceQuality "1"]
[TimeControl "5400+30"]

1. e4 {[%emt 0:00:00]} e5 {[%emt 0:00:00]} 2. f4 {[%emt 0:00:00]} Bc5 {[%emt 0:00:00]} 3. Nf3 {[%emt 0:00:00]} d6 {[%emt 0:00:12]} 4. c3 {[%emt 0:00:00]} Bb6 {[%emt 0:00:35]} 5. d4 {[%emt 0:02:38]} exd4 {[%emt 0:00:21]} 6. cxd4 {[%emt 0:00:09]} Bg4 {[%emt 0:00:12]} 7. Be2 {[%emt 0:03:27]} c6 {[%emt 0:04:56]} 8. Nc3 {[%emt 0:02:02]} d5 {[%emt 0:02:46]} 9. e5 {[%emt 0:02:13]} Nh6 {[%emt 0:02:27]} 10. Be3 {[%emt 0:05:24]} Nf5 {[%emt 0:04:55]} 11. Bf2 {[%emt 0:03:17]} Bxf3 {[%emt 0:02:59]} 12. Bxf3 {[%emt 0:02:54]} Na6 {[%emt 0:01:56]} 13. Qd3 {[%emt 0:10:48]} Nh4 {[%emt 0:04:10]} 14. O-O {[%emt 0:04:14]} Nb4 {[%emt 0:04:05]} 15. Qe2 {[%emt 0:03:44]} Nf5 {[%emt 0:02:52]} 16. Rad1 {[%emt 0:03:12]} O-O {[%emt 0:06:51]} 17. a3 {[%emt 0:01:43]} Na6 {[%emt 0:00:41]} 18. g4 {[%emt 0:06:27]} Nh4 {[%emt 0:03:16]} 19. Bh1 {[%emt 0:05:11]} Ng6 {[%emt 0:07:06]} 20. f5 {[%emt 0:01:47]} Ne7 {[%emt 0:00:41]} 21. Be3 {[%emt 0:13:14]} Nc7 {[%emt 0:08:33]} 22. Qf2 {[%emt 0:01:59]} Nb5 {[%emt 0:07:32]} 23. Qh4 {[%emt 0:02:49]} Qd7 {[%emt 0:07:55]} 24. Rf3 {[%emt 0:01:32]} 1-0

[Event "ONJK-B 2019"]
[Site "Borne"]
[Date "2019.08.07"]
[Round "4.12"]
[White "Maas, Tristan"]
[Black "Wiggers, Yannick"]
[Result "1-0"]
[ECO "B40"]
[WhiteElo "1467"]
[BlackElo "1331"]
[Annotator "NA"]
[PlyCount "41"]
[EventDate "2019.08.05"]
[EventType "swiss"]
[EventCountry "NED"]
[SourceTitle "playchess.com"]
[Source "ChessBase"]
[SourceQuality "1"]
[TimeControl "5400+30"]

1. e4 {[%emt 0:00:00]} c5 {[%emt 0:00:00]} 2. Nf3 {[%emt 0:00:00]} e6 {[%emt 0:00:00]} 3. d4 {[%emt 0:00:00]} cxd4 {[%emt 0:00:00]} 4. Nxd4 {[%emt 0:00:00]} Nf6 {[%emt 0:00:00]} 5. Nc3 {[%emt 0:00:00]} Bb4 {[%emt 0:00:02]} 6. e5 {[%emt 0:00:16]} Nd5 {[%emt 0:00:16]} 7. Bd2 {[%emt 0:01:08]} Bxc3 {[%emt 0:07:32]} 8. bxc3 {[%emt 0:02:53]} Qc7 {[%emt 0:01:28]} 9. f4 {[%emt 0:20:00]} a6 {[%emt 0:06:31]} 10. Qf3 {[%emt 0:02:55]} b5 {[%emt 0:03:32]} 11. Bxb5 {[%emt 0:10:42]} axb5 {[%emt 0:02:08]} 12. Nxb5 {[%emt 0:00:04]} Qc5 {[%emt 0:05:09]} 13. Nd6+ {[%emt 0:00:36]} Kf8 {[%emt 0:15:37]} 14. c4 {[%emt 0:01:51]} Nc7 {[%emt 0:23:39]} 15. Nxc8 {[%emt 0:00:10]} Nc6 {[%emt 0:06:46]} 16. Nd6 {[%emt 0:01:09]} h5 {[%emt 0:04:02]} 17. Qe3 {[%emt 0:02:18]} Qxe3+ {[%emt 0:01:26]} 18. Bxe3 {[%emt 0:00:14]} Rb8 {[%emt 0:00:15]} 19. O-O {[%emt 0:04:20]} Rb2 {[%emt 0:01:27]} 20. Rfc1 {[%emt 0:05:37]} Ke7 {[%emt 0:00:43]} 21. Bc5 {[%emt 0:01:47]} 1-0

[Event "ONJK-B 2019"]
[Site "Borne"]
[Date "2019.08.07"]
[Round "4.13"]
[White "Pol, Florian"]
[Black "Visser, Barto"]
[Result "0-1"]
[ECO "A38"]
[WhiteElo "1334"]
[BlackElo "1389"]
[Annotator "NA"]
[PlyCount "24"]
[EventDate "2019.08.05"]
[EventType "swiss"]
[EventCountry "NED"]
[SourceTitle "playchess.com"]
[Source "ChessBase"]
[SourceQuality "1"]
[TimeControl "5400+30"]

1. c4 {[%emt 0:00:00]} c5 {[%emt 0:00:00]} 2. Nc3 {[%emt 0:00:17]} Nc6 {[%emt 0:00:00]} 3. g3 {[%emt 0:00:00]} Nf6 {[%emt 0:00:01]} 4. Bg2 {[%emt 0:00:00]} g6 {[%emt 0:00:08]} 5. d3 {[%emt 0:00:00]} Bg7 {[%emt 0:00:12]} 6. Nf3 {[%emt 0:00:34]} d5 {[%emt 0:00:33]} 7. cxd5 {[%emt 0:01:08]} Nxd5 {[%emt 0:00:12]} 8. Nxd5 {[%emt 0:00:40]} Qxd5 {[%emt 0:00:28]} 9. O-O {[%emt 0:00:11]} O-O {[%emt 0:02:04]} 10. a3 {[%emt 0:00:52]} Qh5 {[%emt 0:01:57]} 11. e4 {[%emt 0:03:43]} Bg4 {[%emt 0:02:20]} 12. Rb1 {[%emt 0:00:55]} Ne5 {[%emt 0:02:12]} 0-1

[Event "ONJK-B 2019"]
[Site "Borne"]
[Date "2019.08.07"]
[Round "4.14"]
[White "Schoonhoven, Mark"]
[Black "Decruyenaere, Laura"]
[Result "1-0"]
[ECO "C58"]
[WhiteElo "1275"]
[BlackElo "1382"]
[Annotator "NA"]
[PlyCount "129"]
[EventDate "2019.08.05"]
[EventType "swiss"]
[EventCountry "NED"]
[SourceTitle "playchess.com"]
[Source "ChessBase"]
[SourceQuality "1"]
[TimeControl "5400+30"]

1. e4 {[%emt 0:00:00]} e5 {[%emt 0:00:00]} 2. Nf3 {[%emt 0:00:00]} Nc6 {[%emt 0:00:00]} 3. Bc4 {[%emt 0:00:00]} Nf6 {[%emt 0:00:00]} 4. Ng5 {[%emt 0:00:45]} d5 {[%emt 0:00:53]} 5. exd5 {[%emt 0:00:54]} Na5 {[%emt 0:00:28]} 6. Bb5+ {[%emt 0:02:57]} c6 {[%emt 0:00:26]} 7. dxc6 {[%emt 0:00:31]} bxc6 {[%emt 0:00:06]} 8. Ba4 {[%emt 0:00:11]} Bd7 {[%emt 0:06:43]} 9. a3 {[%emt 0:03:50]} h6 {[%emt 0:01:38]} 10. Nf3 {[%emt 0:00:13]} Bd6 {[%emt 0:02:11]} 11. b4 {[%emt 0:00:33]} Nb7 {[%emt 0:01:45]} 12. Bb2 {[%emt 0:00:44]} Qc7 {[%emt 0:01:37]} 13. O-O {[%emt 0:00:46]} O-O {[%emt 0:01:55]} 14. Re1 {[%emt 0:02:18]} Rfe8 {[%emt 0:02:03]} 15. d3 {[%emt 0:01:10]} Bg4 {[%emt 0:01:48]} 16. Nbd2 {[%emt 0:03:49]} Rac8 {[%emt 0:16:07]} 17. c4 {[%emt 0:03:33]} Qb8 {[%emt 0:19:21]} 18. c5 {[%emt 0:00:40]} Bf8 {[%emt 0:03:56]} 19. Nc4 {[%emt 0:02:31]} Nd7 {[%emt 0:11:24]} 20. h3 {[%emt 0:03:46]} Bh5 {[%emt 0:01:14]} 21. g4 {[%emt 0:00:50]} Bg6 {[%emt 0:05:03]} 22. Nfxe5 {[%emt 0:07:30]} Nxe5 {[%emt 0:02:36]} 23. Nxe5 {[%emt 0:12:15]} Re6 {[%emt 0:04:03]} 24. Bb3 {[%emt 0:00:40]} Rf6 {[%emt 0:09:31]} 25. Nd7 {[%emt 0:04:24]} Qf4 {[%emt 0:02:21]} 26. Nxf6+ {[%emt 0:02:21]} gxf6 {[%emt 0:00:48]} 27. Qc1 {[%emt 0:01:06]} Qc7 {[%emt 0:02:16]} 28. Bc4 {[%emt 0:00:26]} Bg7 {[%emt 0:02:03]} 29. Re3 {[%emt 0:00:35]} Rd8 {[%emt 0:01:08]} 30. Qe1 {[%emt 0:00:22]} Qd7 {[%emt 0:00:50]} 31. Qe2 {[%emt 0:00:24]} Rf8 {[%emt 0:00:26]} 32. Re1 {[%emt 0:00:31]} Rd8 {[%emt 0:00:14]} 33. Re7 {[%emt 0:00:34]} Qc8 {[%emt 0:00:43]} 34. Re8+ {[%emt 0:00:06]} Rxe8 {[%emt 0:00:09]} 35. Qxe8+ {[%emt 0:00:05]} Qxe8 {[%emt 0:00:05]} 36. Rxe8+ {[%emt 0:00:05]} Kh7 {[%emt 0:00:21]} 37. Re7 {[%emt 0:00:10]} Nd8 {[%emt 0:00:30]} 38. f4 {[%emt 0:01:18]} f5 {[%emt 0:01:16]} 39. Bxg7 {[%emt 0:00:30]} Kxg7 {[%emt 0:00:12]} 40. Kf2 {[%emt 0:00:25]} Kf6 {[%emt 0:00:55]} 41. Rxa7 {[%emt 0:00:25]} Kg7 {[%emt 0:00:16]} 42. Rd7 {[%emt 0:00:20]} Kf6 {[%emt 0:00:49]} 43. Rxd8 {[%emt 0:00:11]} Ke7 {[%emt 0:00:12]} 44. Ra8 {[%emt 0:00:15]} Kf6 {[%emt 0:00:40]} 45. Ra7 {[%emt 0:00:30]} Kg7 {[%emt 0:00:29]} 46. Kg3 {[%emt 0:00:32]} Kf6 {[%emt 0:00:19]} 47. Kh4 {[%emt 0:00:19]} Kg7 {[%emt 0:00:31]} 48. gxf5 {[%emt 0:00:15]} Bxf5 {[%emt 0:00:25]} 49. Rxf7+ {[%emt 0:00:07]} Kg6 {[%emt 0:00:12]} 50. Rxf5 {[%emt 0:00:21]} Kxf5 {[%emt 0:00:07]} 51. a4 {[%emt 0:00:12]} Kxf4 {[%emt 0:00:17]} 52. a5 {[%emt 0:00:10]} Ke5 {[%emt 0:00:56]} 53. a6 {[%emt 0:00:10]} Kd4 {[%emt 0:00:14]} 54. a7 {[%emt 0:00:18]} Kc3 {[%emt 0:00:15]} 55. a8=Q {[%emt 0:00:08]} Kxb4 {[%emt 0:00:10]} 56. Qa7 {[%emt 0:00:37]} Kc3 {[%emt 0:00:16]} 57. Kg4 {[%emt 0:00:32]} Kd4 {[%emt 0:00:24]} 58. Qa1+ {[%emt 0:00:13]} Kxc5 {[%emt 0:00:26]} 59. Kf4 {[%emt 0:00:11]} Kd6 {[%emt 0:00:37]} 60. Qe5+ {[%emt 0:00:19]} Kd7 {[%emt 0:00:23]} 61. Be6+ {[%emt 0:01:21]} Ke7 {[%emt 0:00:29]} 62. Kf5 {[%emt 0:00:11]} h5 {[%emt 0:00:26]} 63. Qc7+ {[%emt 0:00:09]} Ke8 {[%emt 0:00:20]} 64. Qd7+ {[%emt 0:00:05]} Kf8 {[%emt 0:00:14]} 65. Qf7# {[%emt 0:00:04]} 1-0

[Event "ONJK-B 2019"]
[Site "Borne"]
[Date "2019.08.07"]
[Round "4.15"]
[White "Li-Behn, Tobias"]
[Black "Lauwers, Timo"]
[Result "1-0"]
[ECO "B51"]
[WhiteElo "1264"]
[BlackElo "1364"]
[Annotator "NA"]
[PlyCount "119"]
[EventDate "2019.08.05"]
[EventType "swiss"]
[EventCountry "NED"]
[SourceTitle "playchess.com"]
[Source "ChessBase"]
[SourceQuality "1"]
[TimeControl "5400+30"]

1. e4 {[%emt 0:00:00]} c5 {[%emt 0:00:00]} 2. Nf3 {[%emt 0:00:00]} Nc6 {[%emt 0:00:00]} 3. Bb5 {[%emt 0:00:00]} d6 {[%emt 0:00:04]} 4. c3 {[%emt 0:01:20]} Bd7 {[%emt 0:03:51]} 5. d4 {[%emt 0:03:19]} cxd4 {[%emt 0:03:48]} 6. Nxd4 {[%emt 0:01:24]} Nf6 {[%emt 0:01:58]} 7. Nd2 {[%emt 0:06:55]} Qb6 {[%emt 0:15:05]} 8. Qa4 {[%emt 0:14:35]} e5 {[%emt 0:04:54]} 9. N4f3 {[%emt 0:05:54]} a6 {[%emt 0:03:46]} 10. Bd3 {[%emt 0:02:49]} Nd4 {[%emt 0:03:27]} 11. Qd1 {[%emt 0:02:19]} Ne6 {[%emt 0:02:16]} 12. Nc4 {[%emt 0:03:26]} Qc6 {[%emt 0:06:13]} 13. Qc2 {[%emt 0:04:46]} Nc5 {[%emt 0:08:03]} 14. Nfd2 {[%emt 0:14:10]} Be6 {[%emt 0:02:44]} 15. f3 {[%emt 0:04:43]} Rc8 {[%emt 0:02:13]} 16. Be2 {[%emt 0:02:53]} Be7 {[%emt 0:04:33]} 17. O-O {[%emt 0:00:54]} O-O {[%emt 0:00:44]} 18. Ne3 {[%emt 0:02:20]} d5 {[%emt 0:05:58]} 19. exd5 {[%emt 0:02:45]} Nxd5 {[%emt 0:00:28]} 20. Nxd5 {[%emt 0:01:50]} Bxd5 {[%emt 0:00:22]} 21. c4 {[%emt 0:01:23]} Be6 {[%emt 0:00:32]} 22. b3 {[%emt 0:00:14]} Bf6 {[%emt 0:04:47]} 23. Bb2 {[%emt 0:01:42]} g6 {[%emt 0:00:54]} 24. Ne4 {[%emt 0:00:57]} Nxe4 {[%emt 0:01:24]} 25. fxe4 {[%emt 0:00:42]} Bg7 {[%emt 0:00:41]} 26. Rad1 {[%emt 0:01:14]} Qc5+ {[%emt 0:02:41]} 27. Kh1 {[%emt 0:00:05]} b5 {[%emt 0:00:50]} 28. Qc1 {[%emt 0:02:45]} bxc4 {[%emt 0:00:26]} 29. Ba3 {[%emt 0:00:37]} Qc6 {[%emt 0:01:31]} 30. Bxf8 {[%emt 0:00:42]} Bxf8 {[%emt 0:00:30]} 31. Bxc4 {[%emt 0:01:05]} Bxc4 {[%emt 0:00:25]} 32. Qxc4 {[%emt 0:00:16]} Qxc4 {[%emt 0:00:26]} 33. bxc4 {[%emt 0:00:02]} Rxc4 {[%emt 0:00:12]} 34. Rfe1 {[%emt 0:01:25]} Ra4 {[%emt 0:00:32]} 35. Re2 {[%emt 0:00:43]} Kg7 {[%emt 0:00:31]} 36. g4 {[%emt 0:00:55]} Kf6 {[%emt 0:00:09]} 37. h4 {[%emt 0:01:10]} Be7 {[%emt 0:00:24]} 38. g5+ {[%emt 0:01:30]} Ke6 {[%emt 0:00:10]} 39. Rb1 {[%emt 0:00:28]} Bc5 {[%emt 0:02:20]} 40. Kg2 {[%emt 0:00:49]} Rc4 {[%emt 0:01:29]} 41. Rb8 {[%emt 0:01:11]} Bd4 {[%emt 0:02:32]} 42. Ra8 {[%emt 0:00:42]} Rc6 {[%emt 0:00:37]} 43. Rh8 {[%emt 0:01:01]} Rb6 {[%emt 0:04:46]} 44. Rxh7 {[%emt 0:01:40]} Rc6 {[%emt 0:01:17]} 45. h5 {[%emt 0:01:03]} gxh5 {[%emt 0:00:00]} 46. Rh6+ {[%emt 0:00:34]} Kd7 {[%emt 0:00:02]} 47. Rxc6 {[%emt 0:00:02]} Kxc6 {[%emt 0:00:15]} 48. Kh3 {[%emt 0:00:05]} Kb5 {[%emt 0:01:44]} 49. Rc2 {[%emt 0:01:03]} Be3 {[%emt 0:03:30]} 50. Kh4 {[%emt 0:00:36]} Kb4 {[%emt 0:00:21]} 51. Kxh5 {[%emt 0:00:20]} a5 {[%emt 0:00:51]} 52. Kg4 {[%emt 0:00:05]} Ka3 {[%emt 0:01:04]} 53. Kf5 {[%emt 0:00:55]} Bf4 {[%emt 0:01:22]} 54. Rc7 {[%emt 0:02:04]} a4 {[%emt 0:00:40]} 55. Rxf7 {[%emt 0:00:45]} Kxa2 {[%emt 0:00:44]} 56. g6 {[%emt 0:00:02]} a3 {[%emt 0:00:47]} 57. g7 {[%emt 0:00:29]} Kb1 {[%emt 0:00:05]} 58. g8=Q {[%emt 0:00:36]} Bc1 {[%emt 0:00:07]} 59. Qg1 {[%emt 0:00:36]} a2 {[%emt 0:00:21]} 60. Ra7 {[%emt 0:00:52]} 1-0